bitfinex/quotes_SOLUSD_20260308
["timestamp","ask_amount","ask_price","bid_price","bid_amount"]
[1772966598800,0.5,83.771,83.726,11.94367136]
[1772966599721,0.5,83.769,83.73,12.14308781]
[1772966600718,0.5,83.767,83.73,12.14308781]
[1772966601822,0.5,83.765,83.73,12.14308781]
[1772966602324,0.5,83.765,83.73,42.00096431]
[1772966606222,29.84178116,83.776,83.73,42.00096431]
[1772966606223,0.5,83.763,83.73,42.00096431]
[1772966609206,11.9385879,83.762,83.73,42.00096431]
[1772966609410,0.5,83.775,83.73,42.00096431]
[1772966609605,0.5,83.774,83.73,42.00096431]
[1772966612131,11.93702028,83.773,83.73,42.00096431]
[1772966612324,0.5,83.772,83.73,42.00096431]
[1772966614412,0.5,83.77,83.73,42.00096431]
[1772966616932,0.5,83.768,83.73,42.00096431]
[1772966618234,0.5,83.768,83.73,12.14308781]
[1772966619058,11.93787529,83.767,83.73,12.14308781]
[1772966619241,0.5,83.766,83.73,12.14308781]
[1772966621244,0.5,83.764,83.73,12.14308781]
[1772966623428,0.5,83.762,83.73,12.14308781]
[1772966625928,0.5,83.76,83.73,12.14308781]
[1772966627227,0.5,83.758,83.73,12.14308781]
[1772966630253,11.93930059,83.757,83.73,12.14308781]
[1772966630456,0.5,83.756,83.73,12.14308781]
[1772966631854,0.5,83.778,83.73,42.00096431]
[1772966632350,0.5,83.776,83.73,42.00096431]
[1772966633839,0.5,83.774,83.73,42.00096431]
[1772966636360,0.5,83.772,83.73,42.00096431]
[1772966637947,0.5,83.77,83.73,42.00096431]
[1772966639263,0.5,83.768,83.73,42.00096431]
[1772966641670,0.5,83.766,83.73,42.00096431]
[1772966643463,0.5,83.764,83.73,42.00096431]
[1772966645159,11.93844537,83.763,83.73,42.00096431]
[1772966645464,0.5,83.762,83.73,42.00096431]
[1772966648876,0.5,83.787,83.731,0.28432314]
[1772966649169,0.5,83.787,83.734,0.28432314]
[1772966650476,0.5,83.785,83.736,0.28432314]
[1772966654360,0.5,83.783,83.738,42.08135674]
[1772966657182,0.5,83.781,83.738,42.08135674]
[1772966657479,0.5,83.781,83.738,145.68135674]
[1772966660283,0.5,83.781,83.741,0.28432314]
[1772966662705,0.5,83.811,83.742,101.50223304]
[1772966662986,0.5,83.811,83.746,0.28432314]
[1772966663284,0.5,83.811,83.746,0.14216157]
[1772966664283,0.5,83.809,83.748,41.93420435]
[1772966666382,0.5,83.807,83.748,41.93420435]
[1772966666581,0.5,83.807,83.748,12.08274522]
[1772966668891,101.42229856,83.808,83.748,12.08274522]
[1772966668892,0.5,83.805,83.748,12.08274522]
[1772966670990,0.5,83.805,83.73,0.2]
[1772966670991,0.5,83.803,83.732,41.80002866]
[1772966671295,0.5,83.793,83.732,41.80002866]
[1772966672084,0.5,83.79,83.732,41.80002866]
[1772966675389,0.5,83.788,83.732,41.80002866]
[1772966678395,0.5,83.786,83.732,41.80002866]
[1772966681888,0.5,83.784,83.732,41.80002866]
[1772966684385,0.5,83.782,83.732,41.80002866]
[1772966687313,0.5,83.78,83.732,41.80002866]
[1772966690315,41.77657884,83.779,83.732,41.80002866]
[1772966690530,0.5,83.778,83.732,41.80002866]
[1772966692130,0.5,83.776,83.732,41.80002866]
[1772966693305,0.5,83.774,83.732,41.80002866]
[1772966696424,0.5,83.772,83.732,41.80002866]
[1772966697629,0.5,83.806,83.736,0.28432314]
[1772966697833,0.5,83.806,83.736,3.97815716]
[1772966698511,0.5,83.804,83.741,0.28432314]
[1772966701828,0.5,83.802,83.743,0.28432314]
[1772966702032,0.5,83.801,83.742,41.79503713]
[1772966703020,41.76610978,83.8,83.731,41.80052787]
[1772966703228,0.5,83.798,83.732,0.28432314]
[1772966707235,0.5,83.796,83.734,0.28432314]
[1772966708314,0.5,83.794,83.736,0.28432314]
[1772966709733,0.5,83.792,83.738,0.28432314]
[1772966713042,0.28432314,83.79,83.739,11.94186699]
[1772966713229,0.5,83.789,83.739,11.94186699]
[1772966717325,0.5,83.787,83.731,11.94300796]
[1772966718941,0.5,83.787,83.732,0.28432314]
[1772966719732,3.69383402,83.803,83.732,0.28432314]
[1772966719733,0.5,83.785,83.734,0.28432314]
[1772966723350,0.5,83.783,83.736,0.28432314]
[1772966726150,0.5,83.781,83.735,29.85609362]
[1772966728156,0.5,83.779,83.735,29.85609362]
[1772966730258,11.93630786,83.778,83.735,29.85609362]
[1772966730456,0.5,83.777,83.735,29.85609362]
[1772966732442,0.5,83.775,83.735,29.85609362]
[1772966735367,0.5,83.773,83.735,29.85609362]
[1772966737672,0.5,83.771,83.731,11.94300796]
[1772966740067,41.7810672,83.77,83.731,11.94300796]
[1772966740275,0.5,83.769,83.731,11.94300796]
[1772966741479,0.5,83.767,83.731,11.94300796]
[1772966742572,0.5,83.767,83.73,0.2]
[1772966743760,41.78306233,83.766,83.73,0.2]
[1772966743960,0.5,83.765,83.73,0.2]
[1772966746957,0.5,83.763,83.73,0.2]
[1772966748976,0.5,83.761,83.73,0.2]
[1772966750176,0.5,83.759,83.73,0.2]
[1772966752066,0.5,83.759,83.708,29.865681]
[1772966752268,0.49999999,83.756,83.697,29.86938075]
[1772966752560,0.49999999,83.756,83.714,11.94540063]
[1772966754886,0.28432314,83.757,83.714,11.94540063]
[1772966754887,0.49999999,83.754,83.714,11.94540063]
[1772966756085,0.49999999,83.754,83.71,12.1459696]
[1772966756290,0.49999999,83.754,83.685,59.74775272]
[1772966756291,3.69383402,83.748,83.691,0.4533607]
[1772966756598,4.96693726,83.751,83.701,0.4533607]
[1772966756599,0.45684902,83.745,83.701,0.4533607]
[1772966757089,0.45684902,83.742,83.701,0.4533607]
[1772966758181,0.45684902,83.739,83.701,0.4533607]
[1772966760369,0.45684902,83.737,83.703,0.4533607]
[1772966761288,12.39828523,83.743,83.703,0.4533607]
[1772966761594,0.45684902,83.742,83.703,0.4533607]
[1772966762477,0.45684902,83.74,83.705,0.4533607]
[1772966764394,0.47867688,83.738,83.707,0.4509483]
[1772966765469,11.94186699,83.739,83.707,0.4509483]
[1772966766177,0.47867688,83.762,83.708,0.4509483]
[1772966766385,6.21209192,83.779,83.711,0.4509483]
[1772966766386,11.93783135,83.768,83.711,0.4509483]
[1772966766591,0.47867688,83.772,83.711,0.4509483]
[1772966767894,0.47867688,83.77,83.714,0.4509483]
[1772966769776,0.47867688,83.768,83.716,0.4509483]
[1772966771979,0.47867688,83.766,83.718,0.4509483]
[1772966774498,0.47867688,83.764,83.72,0.4509483]
[1772966777489,0.47867688,83.762,83.722,0.4509483]
[1772966780405,0.47867688,83.76,83.724,0.4509483]
[1772966783338,11.9390155,83.759,83.725,41.80352342]
[1772966783538,0.47867688,83.758,83.726,0.4509483]
[1772966787644,0.47867688,83.756,83.728,0.4509483]
[1772966787819,0.47867688,83.756,83.727,0.4509483]
[1772966790743,0.47867688,83.754,83.728,11.94343588]
[1772966790957,0.47867688,83.754,83.716,29.86282609]
[1772966791244,0.47867688,83.754,83.717,0.5]
[1772966791817,0.47867688,83.754,83.718,0.5]
[1772966793218,59.68357082,83.776,83.718,0.5]
[1772966793219,41.78954783,83.753,83.718,0.5]
[1772966794141,41.78954783,83.753,83.72,0.5]
[1772966795456,0.28432314,83.772,83.722,0.5]
[1772966796831,0.28432314,83.77,83.724,0.5]
[1772966798442,0.28432314,83.768,83.724,0.5]
[1772966799355,0.28432314,83.768,83.726,0.5]
[1772966800955,0.28432314,83.766,83.726,0.5]
[1772966804339,41.78356114,83.765,83.726,0.5]
[1772966806457,41.77907226,83.774,83.727,11.94357853]
[1772966806666,0.28432314,83.773,83.728,0.5]
[1772966808259,0.28432314,83.771,83.728,0.5]
[1772966808848,0.28432314,83.771,83.73,0.5]
[1772966810370,29.84361943,83.77,83.732,0.5]
[1772966813476,59.68357082,83.776,83.734,0.5]
[1772966814352,0.28432314,83.775,83.725,0.5]
[1772966815871,0.28432314,83.773,83.725,0.5]
[1772966817167,0.28432314,83.771,83.725,0.5]
[1772966819369,41.7810672,83.77,83.725,0.5]
[1772966819677,0.28432314,83.769,83.725,0.5]
[1772966819876,5.10909883,83.769,83.715,0.5]
[1772966820962,5.10909883,83.767,83.715,0.5]
[1772966821779,5.10909883,83.767,83.717,0.5]
[1772966823167,0.28432314,83.765,83.719,0.5]
[1772966825471,0.28432314,83.763,83.721,0.5]
[1772966828285,0.28432314,83.761,83.723,0.5]
[1772966829868,41.78505765,83.762,83.723,0.5]
[1772966831273,0.28432314,83.767,83.725,0.5]
[1772966833589,41.78306233,83.766,83.727,0.5]
[1772966835586,41.78306233,83.766,83.728,11.94343588]
[1772966835794,41.78306233,83.766,83.729,0.5]
[1772966837670,45.7532401,83.782,83.73,11.9431506]
[1772966837881,45.7532401,83.782,83.731,0.5]
[1772966841100,45.7532401,83.782,83.732,11.94286533]
[1772966841288,45.7532401,83.782,83.733,0.5]
[1772966843476,45.7532401,83.782,83.735,0.5]
[1772966845188,4.82477569,83.781,83.73,0.5]
[1772966845381,0.28432314,83.776,83.725,0.5]
[1772966845581,5.10909883,83.774,83.725,0.5]
[1772966848201,0.28432314,83.772,83.726,0.5]
[1772966848399,5.10909883,83.772,83.726,0.5]
[1772966849805,5.10909883,83.77,83.726,0.5]
[1772966850301,0.28432314,83.766,83.712,0.5]
[1772966850601,5.10909883,83.766,83.712,0.5]
[1772966851406,41.78356114,83.765,83.714,0.5]
[1772966855489,41.78356114,83.765,83.716,0.5]
[1772966859630,8.51860971,83.761,83.701,0.5]
[1772966859926,0.28432314,83.76,83.702,0.5]
[1772966862018,3.69383402,83.755,83.704,0.5]
[1772966862221,8.51860971,83.746,83.704,0.5]
[1772966862522,3.97815716,83.745,83.704,0.5]
[1772966863830,0.28432314,83.743,83.704,0.5]
[1772966864828,0.28432314,83.743,83.7,0.2]
[1772966865030,5.10909883,83.743,83.7,0.2]
[1772966865408,5.10909883,83.743,83.701,0.5]
[1772966867828,5.10909883,83.741,83.701,0.5]
[1772966868329,5.10909883,83.737,83.701,0.5]
[1772966869133,0.48377949,83.736,83.7,1e-08]
[1772966870126,0.48377949,83.734,83.7,1e-08]
[1772966870920,0.48377949,83.734,83.69,0.2]
[1772966871117,0.76810263,83.732,83.691,0.47485561]
[1772966871412,0.48377949,83.731,83.691,0.47485561]
[1772966872013,41.79952945,83.733,83.693,0.47485561]
[1772966873226,29.85680675,83.733,83.694,11.94828781]
[1772966873433,29.85680675,83.733,83.695,0.47485561]
[1772966874631,29.85680675,83.733,83.697,0.47485561]
[1772966874828,11.94215221,83.737,83.697,0.47485561]
[1772966876231,41.79753274,83.737,83.697,0.47485561]
[1772966876416,42.28131223,83.737,83.697,0.47485561]
[1772966877040,0.48377949,83.736,83.699,0.47485561]
[1772966877214,0.48377949,83.748,83.699,0.47485561]
[1772966879538,0.48377949,83.745,83.701,0.47485561]
[1772966882730,0.49302391,83.743,83.703,0.47802231]
[1772966885144,0.49497177,83.741,83.705,0.4749481]
[1772966889250,0.49497177,83.739,83.69,0.2]
[1772966889550,0.49497177,83.739,83.691,11.94871611]
[1772966890856,0.49497177,83.737,83.691,41.82050638]
[1772966891454,0.49497177,83.737,83.692,0.4749481]
[1772966894460,0.49497177,83.735,83.694,0.4749481]
[1772966897261,11.94258007,83.734,83.696,0.4749481]
[1772966898238,11.94190756,83.739,83.696,0.4749481]
[1772966899142,11.9410114,83.745,83.698,0.4749481]
[1772966899838,12.43598317,83.745,83.698,0.4749481]
[1772966901448,12.43598317,83.745,83.7,0.4749481]
[1772966902260,0.49497177,83.744,83.7,0.4749481]
[1772966903261,11.9410114,83.745,83.7,0.4749481]
[1772966903463,11.9410114,83.745,83.702,0.4749481]
[1772966905574,0.49497177,83.746,83.704,0.4749481]
[1772966909065,0.49497177,83.744,83.706,0.4749481]
[1772966911460,11.94023214,83.751,83.707,41.81251268]
[1772966911654,11.94023214,83.751,83.708,0.4749481]
[1772966912360,11.93972825,83.754,83.708,0.4749481]
[1772966912567,12.40256432,83.754,83.708,0.4749481]
[1772966912874,0.46283607,83.753,83.708,0.4749481]
[1772966915266,12.40284944,83.752,83.71,0.47694628]
[1772966915650,0.46283607,83.751,83.71,0.47694628]
[1772966916479,0.46283607,83.751,83.712,0.47694628]
[1772966921369,12.40313457,83.75,83.714,0.47694628]
[1772966922167,0.46283607,83.749,83.714,0.47694628]
[1772966924067,0.46283607,83.749,83.716,0.47694628]
[1772966925381,0.46283607,83.749,83.718,0.47694628]
[1772966926774,0.46283607,83.749,83.72,0.47694628]
[1772966927479,0.46283607,83.766,83.72,0.47694628]
[1772966927986,0.46283607,83.798,83.721,0.47694628]
[1772966928167,0.46283607,83.797,83.721,0.47694628]
[1772966928369,0.46283607,83.797,83.724,0.47694628]
[1772966928566,0.46283607,83.794,83.724,0.47694628]
[1772966928967,0.46283607,83.792,83.726,0.47694628]
[1772966931081,0.28432314,83.804,83.729,0.47694628]
[1772966931082,0.46283607,83.79,83.729,0.47694628]
[1772966933369,0.46283607,83.788,83.732,0.47694628]
[1772966934586,0.46283607,83.786,83.735,0.47694628]
[1772966936481,0.46283607,83.783,83.737,0.47694628]
[1772966936690,0.46283607,83.783,83.736,11.94229483]
[1772966937771,0.46283607,83.782,83.732,12.4197523]
[1772966937971,0.46283607,83.782,83.727,11.94352043]
[1772966938173,0.46283607,83.782,83.728,0.47694628]
[1772966938886,11.93588045,83.781,83.728,0.47694628]
[1772966939093,0.46283607,83.779,83.729,11.94329324]
[1772966939268,0.46283607,83.779,83.73,0.47694628]
[1772966940895,0.46283607,83.779,83.729,11.94329324]
[1772966941080,41.77707751,83.778,83.729,0.47694628]
[1772966941388,0.46283607,83.776,83.729,0.47694628]
[1772966941988,0.46283607,83.774,83.729,0.47694628]
[1772966942694,0.46283607,83.774,83.709,0.494678]
[1772966943882,4.82477569,83.775,83.708,41.81201318]
[1772966943883,0.28432314,83.772,83.711,0.47595839]
[1772966944094,0.48347288,83.771,83.711,0.47595839]
[1772966947584,0.76779602,83.769,83.713,0.47595839]
[1772966947884,0.48347288,83.765,83.713,0.47595839]
[1772966949894,0.48347288,83.762,83.715,0.47595839]
[1772966951584,0.28432314,83.76,83.715,0.47595839]
[1772966951786,0.48347288,83.759,83.715,0.47595839]
[1772966954602,0.48347288,83.756,83.715,0.47595839]
[1772966955604,0.48347288,83.756,83.717,0.47595839]
[1772966956908,0.48347288,83.754,83.719,0.47595839]
[1772966960002,0.48347288,83.752,83.719,0.47595839]
[1772966962095,0.48347288,83.75,83.719,0.47595839]
[1772966962691,0.48347288,83.75,83.703,0.47595839]
[1772966962692,0.48347288,83.749,83.703,0.47595839]
[1772966964888,0.48347288,83.746,83.691,11.94871611]
[1772966965088,0.48347288,83.744,83.692,0.47595839]
[1772966966790,0.14216157,83.744,83.692,0.47595839]
[1772966966989,0.48347288,83.74,83.694,0.47595839]
[1772966969587,0.48347288,83.738,83.696,0.47595839]
[1772966972111,0.48347288,83.736,83.698,0.47595839]
[1772966972313,0.48347288,83.735,83.698,0.47595839]
[1772966978622,0.28432314,83.736,83.69,0.2]
[1772966978623,0.45290656,83.733,83.7,0.45459581]
[1772966980310,0.45290656,83.731,83.7,0.45459581]
[1772966981823,0.45290656,83.729,83.7,0.45459581]
[1772966983920,11.94343588,83.728,83.701,11.94728856]
[1772966984128,11.94343588,83.728,83.702,0.45459581]
[1772966985520,0.45290656,83.727,83.702,0.45459581]
[1772966987609,0.45290656,83.727,83.704,0.45459581]
[1772966987907,11.94343588,83.728,83.704,0.45459581]
[1772966989115,0.45290656,83.728,83.706,0.45459581]
[1772966990132,11.94357853,83.727,83.706,0.45459581]
[1772966992039,11.94357853,83.727,83.692,29.87108394]
[1772966992040,11.94357853,83.727,83.708,0.45459581]
[1772966992424,0.45290656,83.727,83.708,0.45459581]
[1772966992929,11.94115399,83.744,83.71,0.45459581]
[1772966993119,0.45290656,83.747,83.71,0.45459581]
[1772966994515,29.8488612,83.756,83.709,11.94614677]
[1772966994516,0.45290656,83.745,83.712,0.45459581]
[1772966995631,0.45290656,83.749,83.714,0.45459581]
[1772966999632,0.45290656,83.747,83.716,0.45459581]
[1772967002538,0.49449064,83.754,83.718,0.49888103]
[1772967005142,0.47575719,83.752,83.72,0.49963186]
[1772967007528,11.94015593,83.751,83.722,0.49963186]
[1772967008027,0.47575719,83.783,83.723,0.49963186]
[1772967009146,3.69383402,83.798,83.709,3.69383402]
[1772967009147,0.47575719,83.781,83.726,0.49963186]
[1772967010764,0.47575719,83.78,83.726,0.49963186]
[1772967011749,0.47575719,83.777,83.728,0.49963186]
[1772967014860,0.47575719,83.777,83.727,11.94357853]
[1772967014861,0.47575719,83.775,83.73,0.49963186]
[1772967015645,0.47575719,83.773,83.732,0.49963186]
[1772967017656,0.47575719,83.771,83.732,0.49963186]
[1772967017955,0.47575719,83.77,83.732,0.49963186]
[1772967018750,0.47575719,83.77,83.726,0.49963186]
[1772967021162,0.47575719,83.767,83.726,0.49963186]
[1772967023761,0.47575719,83.765,83.726,0.49963186]
[1772967026861,0.47575719,83.763,83.728,0.49963186]
[1772967029652,0.47575719,83.761,83.728,0.49963186]
[1772967031060,41.78605539,83.76,83.728,0.49963186]
[1772967031266,0.47575719,83.759,83.728,0.49963186]
[1772967033256,41.78605539,83.76,83.728,0.49963186]
[1772967033257,0.45116671,83.757,83.728,0.49963186]
[1772967035759,0.45116671,83.755,83.728,0.49963186]
[1772967036276,11.93944314,83.756,83.73,0.47309268]
[1772967037280,0.45116671,83.756,83.73,0.47309268]
[1772967038556,0.45116671,83.754,83.73,0.47309268]
[1772967041271,0.45116671,83.752,83.73,0.47309268]
[1772967044680,11.94015593,83.751,83.73,0.47309268]
[1772967046467,12.39132264,83.751,83.73,0.47309268]
[1772967052377,0.45116671,83.75,83.73,0.47309268]
[1772967056770,0.45116671,83.748,83.73,0.47309268]
[1772967058092,11.94072623,83.747,83.73,0.47309268]
[1772967059295,0.45116671,83.752,83.73,0.47309268]
[1772967061281,0.45116671,83.768,83.732,0.47309268]
[1772967067608,0.45566777,83.766,83.734,0.48647666]
[1772967069809,0.45566777,83.764,83.736,0.48647666]
[1772967071210,0.45566777,83.764,83.706,59.73287419]
[1772967071211,0.45566777,83.763,83.697,3.69383402]
[1772967073014,0.73999091,83.761,83.7,0.48647666]
[1772967073188,0.45566777,83.76,83.7,0.48647666]
[1772967074711,0.45566777,83.757,83.702,0.48647666]
[1772967077716,0.45566777,83.755,83.704,0.48647666]
[1772967080715,0.45566777,83.753,83.706,0.48647666]
[1772967081602,0.45566777,83.752,83.706,0.48647666]
[1772967082012,3.97815716,83.75,83.687,0.48647666]
[1772967082225,0.45566777,83.736,83.688,0.48647666]
[1772967082417,0.45566777,83.736,83.691,0.48647666]
[1772967082722,41.79853107,83.735,83.691,0.48647666]
[1772967083021,0.45566777,83.734,83.691,0.48647666]
[1772967085206,0.45566777,83.731,83.691,0.48647666]
[1772967087523,0.45566777,83.728,83.692,0.48647666]
[1772967089820,0.45566777,83.725,83.692,0.48647666]
[1772967090808,0.45566777,83.739,83.694,0.48647666]
[1772967091322,0.45566777,83.738,83.694,0.48647666]
[1772967091906,0.45566777,83.735,83.696,0.48647666]
[1772967095809,41.79753274,83.737,83.698,0.48658083]
[1772967095810,0.49171924,83.733,83.698,0.48658083]
[1772967098740,0.49171924,83.731,83.7,0.48658083]
[1772967099835,0.49171924,83.74,83.7,0.48658083]
[1772967100219,0.49171924,83.739,83.7,0.48658083]
[1772967100820,0.49171924,83.737,83.702,0.48658083]
[1772967102931,0.49171924,83.735,83.704,0.48658083]
[1772967110123,11.94258007,83.734,83.705,11.94671763]
[1772967110342,0.49171924,83.733,83.706,0.48658083]
[1772967116954,0.49171924,83.731,83.708,0.48658083]
[1772967120348,0.49171924,83.729,83.71,0.48658083]
[1772967122758,11.94343588,83.728,83.71,0.48658083]
[1772967123459,12.41767519,83.728,83.71,0.48658083]
[1772967123759,0.47423931,83.727,83.71,0.48658083]
[1772967129442,0.47423931,83.727,83.711,0.467261]
[1772967129843,0.47423931,83.727,83.71,11.94593594]
[1772967129844,0.47423931,83.746,83.712,0.467261]
[1772967134262,0.47423931,83.746,83.714,0.467261]
[1772967134463,0.47423931,83.766,83.715,0.467261]
[1772967134848,0.47423931,83.764,83.715,0.467261]
[1772967137169,0.47423931,83.762,83.717,0.467261]
[1772967137869,0.47423931,83.761,83.717,0.467261]
[1772967139268,0.47423931,83.759,83.719,0.467261]
[1772967142665,0.47423931,83.759,83.696,59.73947881]
[1772967142666,0.47423931,83.757,83.721,0.467261]
[1772967146855,0.47423931,83.757,83.723,0.467261]
[1772967148454,11.93944314,83.756,83.723,0.467261]
[1772967148772,0.47423931,83.755,83.723,0.467261]
[1772967150778,0.47423931,83.755,83.725,0.467261]
[1772967152876,0.47423931,83.755,83.727,0.478625]
[1772967155775,0.47423931,83.755,83.728,11.94343588]
[1772967155984,0.47423931,83.755,83.729,0.478625]
[1772967158764,0.47423931,83.755,83.731,0.478625]
[1772967159587,0.47146012,83.753,83.731,0.478625]
[1772967161880,0.47146012,83.753,83.733,0.478625]
[1772967165484,0.47146012,83.753,83.734,11.94258007]
[1772967167099,0.47146012,83.753,83.734,0.478625]
[1772967170387,0.47146012,83.753,83.736,0.478625]
[1772967170910,0.47146012,83.763,83.736,0.478625]
[1772967171592,0.28432314,83.779,83.736,0.478625]
[1772967171593,0.47146012,83.761,83.736,0.478625]
[1772967174899,0.47146012,83.761,83.738,0.478625]
[1772967178100,0.47146012,83.759,83.738,0.478625]
[1772967179384,0.47146012,83.759,83.74,0.478625]
[1772967180014,0.47146012,83.759,83.736,0.478625]
[1772967180308,29.8430643,83.772,83.736,0.478625]
[1772967180309,0.47146012,83.757,83.736,0.478625]
[1772967182899,0.47146012,83.757,83.736,12.42077773]
[1772967184017,0.45656496,83.755,83.732,11.94282647]
[1772967185813,0.45656496,83.753,83.73,0.49647702]
[1772967190113,0.45656496,83.753,83.732,0.49647702]
[1772967193314,0.45656496,83.752,83.733,11.9427227]
[1772967194897,0.45656496,83.752,83.729,0.49647702]
[1772967199123,0.45656496,83.75,83.731,0.49647702]
[1772967201525,0.45656496,83.75,83.733,0.49647702]
[1772967202219,0.45656496,83.75,83.732,11.94286533]
[1772967202423,0.45656496,83.748,83.729,0.49647702]
[1772967202599,0.45656496,83.748,83.716,0.49647702]
[1772967203731,0.45656496,83.748,83.718,0.49647702]
[1772967204651,0.45656496,83.746,83.717,11.94500519]
[1772967204810,0.45656496,83.746,83.714,0.49647702]
[1772967205608,0.45656496,83.746,83.71,0.49647702]
[1772967205808,0.45656496,83.744,83.712,0.49647702]
[1772967208128,0.45656496,83.75,83.714,0.49647702]
[1772967211757,0.45656496,83.769,83.716,0.49647702]
[1772967211940,160.6664149,84.032,83.716,0.49647702]
[1772967211941,0.45656496,83.797,83.717,0.49647702]
[1772967212241,0.45656496,83.794,83.717,0.49647702]
[1772967213248,0.46317167,83.792,83.72,0.48982969]
[1772967214623,0.46317167,83.791,83.72,0.48982969]
[1772967215848,0.28432314,83.789,83.723,0.48982969]
[1772967216067,0.46317167,83.788,83.723,0.48982969]
[1772967217475,0.28432314,83.789,83.723,0.48982969]
[1772967217476,0.46317167,83.784,83.723,0.48982969]
[1772967217644,0.46317167,83.782,83.723,0.48982969]
[1772967218348,0.46317167,83.777,83.725,0.48982969]
[1772967219757,0.46317167,83.777,83.711,0.48982969]
[1772967219958,0.46317167,83.777,83.712,0.48982969]
[1772967221876,0.46317167,83.774,83.714,0.48982969]
[1772967224883,0.46317167,83.771,83.716,0.48982969]
[1772967227894,0.46317167,83.768,83.718,0.48982969]
[1772967230886,0.46317167,83.765,83.72,0.48982969]
[1772967235292,0.46317167,83.763,83.722,0.48982969]
[1772967236973,0.46317167,83.761,83.724,0.48982969]
[1772967240095,0.46317167,83.759,83.726,0.48982969]
[1772967241905,0.28432314,83.78,83.726,0.48982969]
[1772967241906,0.46317167,83.757,83.726,0.48982969]
[1772967242208,0.46317167,83.757,83.727,0.48982969]
[1772967243376,0.48102089,83.755,83.727,0.48982969]
[1772967245398,11.93972825,83.754,83.727,0.48982969]
[1772967245586,0.48102089,83.753,83.727,0.48982969]
[1772967248899,0.48102089,83.751,83.727,0.48982969]
[1772967250706,0.48102089,83.751,83.725,0.49577018]
[1772967252103,0.48102089,83.749,83.726,12.43949136]
[1772967252404,0.48102089,83.749,83.727,0.49577018]
[1772967252798,0.48102089,83.776,83.727,0.49577018]
[1772967253796,0.48102089,83.77,83.729,0.49577018]
[1772967256507,0.48102089,83.767,83.725,0.49577018]
[1772967257406,0.48102089,83.767,83.727,0.49577018]
[1772967257603,0.48102089,83.767,83.72,0.49577018]
[1772967258510,0.48102089,83.767,83.722,0.49577018]
[1772967259405,0.48102089,83.764,83.717,0.49577018]
[1772967261108,0.48102089,83.764,83.718,0.49577018]
[1772967262014,0.48102089,83.761,83.695,0.49577018]
[1772967262695,0.48102089,83.756,83.695,0.49577018]
[1772967263010,0.48102089,83.752,83.695,0.49577018]
[1772967264297,0.48102089,83.75,83.697,0.49577018]
[1772967266615,0.48102089,83.747,83.699,0.49577018]
[1772967268737,0.48102089,83.745,83.701,0.49577018]
[1772967271819,0.48102089,83.743,83.703,0.49577018]
[1772967272527,0.48102089,83.742,83.702,11.94714582]
[1772967273112,0.48102089,83.742,83.702,12.43833427]
[1772967273513,0.48102089,83.742,83.702,0.49118845]
[1772967274527,0.47631315,83.736,83.686,0.49118845]
[1772967274721,0.47631315,83.732,83.681,0.49118845]
[1772967274928,0.47631315,83.726,83.681,0.49118845]
[1772967275317,0.47631315,83.726,83.691,0.49118845]
[1772967276417,0.47631315,83.724,83.692,0.49118845]
[1772967276819,11.94386383,83.725,83.692,0.49118845]
[1772967277023,0.47631315,83.724,83.692,0.49118845]
[1772967278031,0.47631315,83.724,83.694,0.49118845]
[1772967280044,0.47631315,83.724,83.696,0.49118845]
[1772967281920,0.47631315,83.724,83.698,0.49118845]
[1772967284844,0.47631315,83.724,83.699,11.94757404]
[1772967285145,0.47631315,83.724,83.7,0.49118845]
[1772967286136,0.47631315,83.722,83.7,0.49118845]
[1772967288245,0.47631315,83.722,83.702,0.49118845]
[1772967291326,0.47631315,83.722,83.704,0.49118845]
[1772967292130,0.47631315,83.72,83.694,0.49118845]
[1772967292667,12.42026949,83.725,83.694,0.49118845]
[1772967293745,0.47631315,83.724,83.696,0.49118845]
[1772967296150,0.14216157,83.741,83.698,0.49118845]
[1772967296151,0.47631315,83.722,83.698,0.49118845]
[1772967298550,0.47631315,83.722,83.7,0.49118845]
[1772967299426,11.94243745,83.735,83.7,0.49118845]
[1772967300248,0.47631315,83.747,83.7,0.49118845]
[1772967300556,11.94086881,83.746,83.701,41.81550996]
[1772967300735,0.47631315,83.745,83.702,0.49118845]
[1772967305851,11.94115399,83.744,83.703,41.81451082]
[1772967306058,0.49074838,83.743,83.704,0.4515771]
[1772967307276,0.49074838,83.741,83.706,0.4515771]
[1772967308174,0.49074838,83.746,83.706,0.4515771]
[1772967308356,12.43175978,83.745,83.708,0.4515771]
[1772967309367,11.9410114,83.745,83.708,0.4515771]
[1772967309652,11.94040772,83.75,83.708,0.4515771]
[1772967309870,0.49074838,83.749,83.708,0.4515771]
[1772967310562,0.49074838,83.749,83.71,0.4515771]